bitfinex-derivatives/quotes_ETHF0:USTF0_20241129
["timestamp","ask_amount","ask_price","bid_price","bid_amount"]
[1732858668736,4.2108,3589.5,3588.9,1.2808]
[1732858669036,4.2108,3589.5,3588.6,44.0078]
[1732858669037,3.2078,3589.1,3588.6,44.0078]
[1732858669237,0.27858,3588.7,3588.6,44.0078]
[1732858669537,0.27857,3588.9,3588.6,44.0078]
[1732858669733,0.70296,3589.0,3588.6,44.28638]
[1732858670040,0.27854,3589.2,3588.8,0.27857]
[1732858670237,0.27854,3589.2,3588.9,0.8523]
[1732858670434,0.27854,3589.2,3588.9,1.265]
[1732858670639,0.27855,3589.1,3588.9,1.265]
[1732858672344,0.27855,3589.0,3588.9,1.265]
[1732858672933,0.27855,3589.0,3588.9,0.4127]
[1732858673936,0.4244,3589.4,3588.9,0.4127]
[1732858674134,0.27855,3589.0,3588.9,0.4127]
[1732858675943,0.27855,3589.1,3588.9,0.4127]
[1732858679043,0.4244,3589.4,3588.9,0.4127]
[1732858679244,5.32615548,3589.1,3588.6,3.2078]
[1732858679444,0.8293,3589.0,3588.3,4.37010936]
[1732858679646,0.2786,3588.5,3588.2,4.37010936]
[1732858679940,0.8293,3589.0,3588.2,4.37010936]
[1732858679941,0.2786,3588.4,3588.3,40.8]
[1732858680140,0.2786,3588.5,3588.3,40.8]
[1732858680740,0.4372,3588.6,3588.3,40.8]
[1732858680741,0.71579,3588.6,3588.3,40.8]
[1732858680948,0.27859,3588.5,3588.3,40.8]
[1732858681242,0.2786,3588.4,3588.3,40.8]
[1732858681444,0.4372,3588.6,3587.8,4.37010936]
[1732858681646,3.2078,3588.2,3587.7,4.79480936]
[1732858681946,0.27865,3587.8,3587.7,0.4247]
[1732858682246,0.27863,3588.0,3587.7,0.4247]
[1732858682446,0.27865,3587.8,3587.7,0.4247]
[1732858682641,0.27864,3587.9,3587.7,0.4247]
[1732858682844,3.2078,3588.2,3587.7,0.4247]
[1732858683239,3.48642,3588.2,3587.7,0.4247]
[1732858683452,3.2078,3588.2,3587.7,0.4247]
[1732858683841,0.27863,3588.1,3587.7,0.4247]
[1732858685048,0.27863,3588.1,3587.7,0.70335]
[1732858686044,0.27863,3588.0,3587.7,0.4247]
[1732858686251,0.27864,3587.9,3587.7,0.4247]
[1732858687450,0.27864,3587.9,3587.8,40.8]
[1732858690552,0.27867,3587.5,3587.4,3.6468]
[1732858691046,0.27867,3587.6,3587.4,44.4468]
[1732858691850,0.27866,3587.7,3587.4,44.4468]
[1732858692663,0.4287,3587.8,3587.4,44.4468]
[1732858692849,0.70735,3587.8,3587.4,44.72548]
[1732858693048,0.4287,3587.8,3587.4,44.72548]
[1732858693242,3.6147,3588.2,3587.5,0.27867]
[1732858693447,3.6147,3588.2,3587.7,0.27865]
[1732858693448,0.27863,3588.1,3587.7,0.27865]
[1732858693649,3.2078,3588.2,3587.8,0.4387]
[1732858693851,3.2078,3588.2,3588.1,0.27862]
[1732858694044,1.003,3588.7,3587.9,0.4376]
[1732858694244,1.003,3588.7,3588.0,0.4175]
[1732858694245,0.27859,3588.6,3588.0,0.4175]
[1732858694444,1.003,3588.7,3588.1,0.27862]
[1732858694652,0.2786,3588.5,3588.1,0.27862]
[1732858694854,1.003,3588.7,3588.0,0.69613]
[1732858695151,0.27859,3588.6,3588.1,0.27862]
[1732858695644,0.4409,3588.8,3588.1,0.27862]
[1732858695841,0.4409,3588.8,3588.0,0.4175]
[1732858695842,0.27857,3588.8,3588.4,0.2786]
[1732858696046,0.27857,3588.8,3588.5,0.4387]
[1732858696243,0.27857,3588.8,3588.6,0.4191]
[1732858696545,0.27857,3588.8,3588.7,40.8]
[1732858696746,3.2078,3588.9,3588.6,0.4175]
[1732858696948,3.2078,3588.9,3588.0,0.4191]
[1732858696949,0.27861,3588.4,3588.0,0.4191]
[1732858697147,2.55805548,3588.8,3588.1,0.4099]
[1732858697349,0.2786,3588.4,3588.2,40.8]
[1732858697748,2.55805548,3588.8,3588.2,40.8]
[1732858697949,0.27859,3588.6,3588.2,40.8]
[1732858698151,0.27859,3588.6,3588.2,41.07862]
[1732858699350,0.27858,3588.7,3588.3,0.27861]
[1732858699751,2.11835548,3588.8,3588.4,0.2786]
[1732858699955,2.39692548,3588.8,3588.3,0.2786]
[1732858700151,2.39692548,3588.8,3588.4,0.2786]
[1732858700353,1.003,3589.1,3588.5,0.27859]
[1732858700354,0.27857,3588.9,3588.5,0.27859]
[1732858700650,0.27857,3588.9,3588.6,0.8608]
[1732858701157,0.27857,3588.9,3588.7,0.4327]
[1732858705257,0.27861,3588.4,3588.1,4.34537296]
[1732858705558,0.2786,3588.5,3588.0,0.8498]
[1732858705758,0.2786,3588.5,3588.0,1.91843]
[1732858705953,0.2786,3588.5,3588.0,1.12843]
[1732858706356,0.8806,3589.2,3588.3,3.2078]
[1732858706655,0.27857,3588.8,3588.4,0.27859]
[1732858706859,0.27857,3588.8,3588.5,0.4255]
[1732858707059,3.2078,3589.1,3588.6,0.439]
[1732858707265,3.2078,3589.1,3588.7,0.69558]
[1732858707266,3.48635,3589.1,3588.7,0.69558]
[1732858707560,3.2078,3589.1,3588.7,0.417]
[1732858707961,0.27857,3588.9,3588.7,0.417]
[1732858708269,0.27856,3589.0,3588.7,0.417]
[1732858708760,2.55925548,3589.2,3588.7,0.417]
[1732858708965,2.39689548,3589.2,3588.8,0.27857]
[1732858709360,3.2078,3589.5,3588.7,3.6248]
[1732858709559,0.27854,3589.3,3589.0,0.27855]
[1732858709761,2.11835548,3589.6,3589.1,0.427]
[1732858709959,0.27852,3589.4,3589.1,0.70554]
[1732858710159,0.27852,3589.5,3589.2,0.4183]
[1732858710662,0.27852,3589.4,3589.3,0.4083]
[1732858711267,0.27852,3589.4,3589.3,41.2083]
[1732858711568,0.27852,3589.5,3589.3,41.2083]
[1732858712662,2.11835548,3589.6,3589.3,41.2083]
[1732858712961,3.2078,3589.9,3589.3,41.2083]
[1732858713160,3.2078,3589.9,3589.4,0.27852]
[1732858713368,3.48629,3589.9,3589.4,0.27852]
[1732858713575,3.48629,3589.9,3589.5,0.27851]
[1732858713971,3.48629,3589.9,3589.3,41.2083]
[1732858714262,3.48629,3589.9,3589.4,0.27852]
[1732858714471,3.48629,3589.9,3589.5,0.27851]
[1732858714661,3.48629,3589.9,3589.4,0.27852]
[1732858715066,3.48629,3589.9,3589.3,41.2083]
[1732858715372,3.48629,3589.9,3589.5,0.27851]
[1732858715964,3.2078,3589.9,3589.6,0.2785]
[1732858716275,3.2078,3589.9,3589.7,0.4466]
[1732858716276,3.48629,3589.9,3589.7,0.4466]
[1732858716573,3.48629,3589.9,3589.8,0.4159]
[1732858716963,3.48629,3589.9,3589.5,0.27851]
[1732858717164,3.2078,3589.9,3589.3,41.2083]
[1732858717372,3.2078,3589.9,3589.6,0.2785]
[1732858718259,3.48628,3589.9,3589.6,0.2785]
[1732858718563,3.48628,3589.9,3589.5,0.27851]
[1732858718780,3.2078,3589.9,3589.5,0.27851]
[1732858718968,0.2785,3589.8,3589.4,0.27852]
[1732858719370,0.2785,3589.8,3589.3,41.2083]
[1732858719671,0.2785,3589.8,3589.5,0.27851]
[1732858724577,0.2785,3589.7,3589.5,0.27851]
[1732858724786,0.2785,3589.8,3589.5,0.27851]
[1732858725082,3.2078,3589.9,3589.8,0.27849]
[1732858726185,3.2078,3589.9,3589.4,0.27852]
[1732858726386,3.2078,3589.9,3589.8,0.27849]
[1732858726993,3.2078,3589.9,3589.7,0.27849]
[1732858727289,3.2078,3589.9,3589.8,0.4225]
[1732858727592,3.2078,3589.9,3589.8,0.853]
[1732858728279,3.48628,3589.9,3589.8,0.853]
[1732858728487,3.48628,3589.9,3589.8,0.4225]
[1732858728686,0.2785,3589.8,3589.5,0.27851]
[1732858730690,3.48629,3589.9,3589.6,0.27851]
[1732858730890,0.27849,3589.8,3589.5,0.27851]
[1732858731591,0.2785,3589.8,3589.5,0.27852]
[1732858732582,1.02479255,3589.7,3589.4,0.8672]
[1732858732787,1.02479255,3589.7,3589.4,1.14572]
[1732858732788,1.30329255,3589.7,3589.4,1.14572]
[1732858732993,1.30329255,3589.7,3589.4,0.8672]
[1732858733191,1.02479255,3589.7,3589.3,40.8]
[1732858733485,0.4215,3589.8,3588.9,0.4395]
[1732858733486,0.27855,3589.1,3588.9,0.4395]
[1732858733686,0.4246,3589.0,3588.9,0.4395]
[1732858733889,0.70315,3589.0,3588.9,41.2395]
[1732858734291,0.4246,3589.0,3588.9,41.2395]
[1732858736490,3.91095,3589.0,3588.9,40.8]
[1732858737292,3.6324,3589.0,3588.3,0.69061]
[1732858737594,0.27857,3588.8,3588.4,0.2786]
[1732858737789,0.27857,3588.8,3588.5,40.8]
[1732858739790,3.6324,3589.0,3588.5,40.8]
[1732858739997,0.27857,3588.9,3588.5,41.07859]
[1732858740394,0.27857,3588.8,3588.5,40.8]
[1732858741093,0.27856,3588.9,3588.5,40.8]
[1732858741299,3.6324,3589.0,3588.5,40.8]
[1732858741496,0.27857,3588.9,3588.5,41.07859]
[1732858741900,3.91096,3589.0,3588.6,0.27858]
[1732858742101,3.91096,3589.0,3588.5,40.8]
[1732858742102,3.6324,3589.0,3588.5,40.8]
[1732858742299,0.27856,3588.9,3588.5,41.07859]
[1732858742494,0.27857,3588.9,3588.5,40.8]
[1732858743002,0.27857,3588.9,3588.5,41.07859]
[1732858743995,3.6324,3589.0,3588.5,40.8]
[1732858744297,0.27857,3588.8,3588.5,40.8]
[1732858744498,0.27858,3588.7,3588.5,40.8]
[1732858747694,3.6324,3589.0,3588.5,40.8]
[1732858747894,0.27859,3588.6,3588.5,40.8]
[1732858750294,3.06499,3588.6,3588.5,40.8]
[1732858750695,0.27859,3588.6,3588.5,40.8]
[1732858752403,3.06499,3588.6,3588.5,40.8]
[1732858752608,0.27859,3588.6,3588.5,40.8]
[1732858755308,0.27866,3587.7,3587.4,41.6474]
[1732858755500,0.27866,3587.6,3587.4,41.6474]
[1732858758103,1.02606253,3587.8,3587.4,41.6474]
[1732858758308,0.27867,3587.6,3587.4,41.6474]
[1732858759000,0.27867,3587.5,3587.4,41.6474]
[1732858759400,0.27867,3587.6,3587.4,41.6474]
[1732858763397,1.02606253,3587.8,3587.4,41.6474]
[1732858763604,0.27867,3587.5,3587.4,41.6474]
[1732858770408,1.30473253,3587.5,3587.4,41.6474]
[1732858771301,1.02606253,3587.5,3587.1,3.2078]
[1732858771508,1.30475253,3587.2,3587.1,0.4212]
[1732858771807,1.30475253,3587.2,3587.1,41.2212]
[1732858772610,0.27871,3587.0,3586.8,0.8264]
[1732858772807,0.27871,3587.0,3586.9,0.4212]
[1732858773007,0.27871,3587.0,3586.9,41.2212]
[1732858773213,1.02606253,3587.2,3586.9,41.2212]
[1732858773410,0.27871,3587.0,3586.9,41.2212]
[1732858775510,0.27871,3587.0,3586.9,0.4212]
[1732858775710,1.4219,3587.3,3586.9,0.4212]
[1732858776010,0.27871,3587.0,3586.9,0.4212]
[1732858776208,1.30477253,3587.1,3586.9,0.4212]
[1732858776411,1.02606253,3587.1,3586.9,0.4212]
[1732858776808,1.30477253,3587.1,3586.9,0.4212]
[1732858777004,0.4199,3587.3,3586.9,0.4212]
[1732858777311,1.30476253,3587.2,3586.9,0.4212]
[1732858777910,1.02606253,3587.2,3586.9,0.4212]
[1732858778109,0.2787,3587.1,3586.9,0.4212]
[1732858779419,0.27871,3587.0,3586.9,0.4212]
[1732858780512,1.02606253,3587.2,3586.9,0.4212]
[1732858780713,0.27871,3587.0,3586.9,0.4212]
[1732858781617,1.02606253,3587.2,3586.9,0.4212]
[1732858781814,3.2078,3587.5,3586.9,0.4212]
[1732858782013,1.02606253,3587.5,3587.2,0.27869]
[1732858782409,1.02606253,3587.5,3587.0,3.2078]
[1732858782613,1.30474253,3587.5,3587.3,40.8]
[1732858782919,1.30474253,3587.5,3587.4,0.8758]
[1732858783120,1.30474253,3587.5,3587.4,1.2884]
[1732858783615,1.02606253,3587.5,3587.4,1.56708]
[1732858784216,1.30473253,3587.5,3587.4,1.2884]
[1732858784712,1.02606253,3587.5,3587.4,1.2884]
[1732858786020,1.02606253,3587.5,3587.4,1.56708]
[1732858796326,1.02606253,3587.5,3587.4,5.91245296]
[1732858796930,1.02606253,3587.5,3587.4,1.56708]
[1732858797225,1.02606253,3587.5,3587.4,5.91245296]
[1732858798021,0.8277,3588.0,3587.4,11.79286427]
[1732858798225,1.02606253,3587.8,3587.6,4.34537296]
[1732858798427,1.43956253,3588.0,3587.9,0.27864]
[1732858798828,3.48643,3588.1,3587.9,0.27864]
[1732858799034,3.2078,3588.1,3588.0,0.27863]
[1732858799928,3.2078,3588.1,3588.0,1.14673]
[1732858800527,3.2078,3588.1,3588.0,0.8681]
[1732858800829,3.2078,3588.1,3588.0,1.14673]
[1732858803937,0.4309,3588.5,3588.4,0.2786]
[1732858804533,0.4309,3588.5,3588.4,41.0786]
[1732858805137,1.02606253,3588.6,3588.5,0.27859]
[1732858805334,1.02606253,3588.6,3588.4,40.8]
[1732858805534,1.02606253,3588.6,3588.5,0.72129]
[1732858805939,0.4169,3588.8,3588.7,0.27858]
[1732858806134,1.02606253,3588.9,3588.7,0.27858]
[1732858807440,1.02606253,3588.9,3588.6,0.8575]
[1732858807635,1.02606253,3588.9,3588.8,0.27857]
[1732858808436,1.02606253,3588.9,3588.7,0.27857]
[1732858808635,1.02606253,3588.9,3588.6,0.8575]
[1732858808636,1.30463253,3588.9,3588.6,1.13608]
[1732858808841,1.02606253,3588.7,3588.6,1.13608]
[1732858813035,0.69545,3589.1,3588.6,1.13608]
[1732858813036,1.02606253,3589.0,3588.8,0.27856]
[1732858813636,1.02606253,3589.0,3588.6,0.8575]
[1732858814142,1.02606253,3589.0,3588.8,0.27857]
[1732858814839,1.02606253,3589.3,3588.6,0.8575]
[1732858815040,1.02606253,3589.3,3589.1,0.27854]
[1732858815343,1.02606253,3589.3,3589.2,0.4424]
[1732858815640,1.2562,3589.5,3589.2,0.4424]
[1732858815641,1.85546253,3589.5,3589.2,0.4424]
[1732858815845,1.85546253,3589.5,3589.3,0.4331]
[1732858815846,1.72188253,3589.5,3589.3,0.4331]
[1732858816342,1.02606253,3589.5,3589.4,40.8]
[1732858817340,1.30458253,3589.5,3589.4,40.8]
[1732858818246,1.02606253,3589.5,3589.4,40.8]
[1732858819642,3.81166253,3589.5,3588.7,3.2078]
[1732858819854,1.02606253,3588.9,3588.8,0.4074]
[1732858820149,1.02606253,3588.9,3588.8,0.68597]
[1732858820640,1.02606253,3588.9,3588.8,0.4074]
[1732858820855,1.02606253,3588.9,3588.8,0.68597]
[1732858823243,0.8822,3589.1,3588.8,0.4074]
[1732858823438,0.4462,3589.1,3589.0,0.27855]
[1732858823639,0.4462,3589.1,3588.9,0.27856]
[1732858824245,0.4462,3589.1,3588.8,0.4074]
[1732858824449,0.27856,3588.9,3588.8,0.4074]
[1732858824649,0.27856,3588.9,3588.7,44.0078]
[1732858824650,1.30462253,3588.9,3588.7,44.0078]
[1732858824854,0.27857,3588.8,3588.7,40.8]
[1732858825147,1.02606253,3588.9,3588.7,40.8]
[1732858825748,1.02606253,3588.9,3588.7,41.07858]
[1732858826549,1.02606253,3588.9,3588.7,40.8]
[1732858827653,1.02606253,3588.9,3588.7,41.07858]
[1732858829353,1.02606253,3588.9,3588.7,40.8]
[1732858829550,1.02606253,3588.9,3588.7,41.07858]
[1732858829751,1.30462253,3588.9,3588.7,40.8]
[1732858829948,1.02606253,3588.9,3588.7,40.8]
[1732858830153,0.4462,3589.1,3588.8,0.27857]
[1732858830353,0.72475,3589.1,3588.7,40.8]
[1732858830647,0.72475,3589.1,3588.7,41.07857]
[1732858831244,0.72475,3589.1,3588.8,0.27857]
[1732858831652,0.27855,3589.0,3588.9,0.4286]
[1732858831853,0.27857,3588.8,3588.7,40.8]
[1732858832045,1.30463253,3588.8,3588.7,40.8]
[1732858832850,1.02606253,3588.8,3588.7,40.8]
[1732858833054,1.30463253,3588.8,3588.7,40.8]
[1732858834457,0.27859,3588.6,3588.4,0.8543]
[1732858834854,4.23386253,3588.8,3588.5,40.8]
[1732858835051,0.27858,3588.7,3588.5,40.8]
[1732858836655,0.27859,3588.6,3588.5,40.8]
[1732858837258,6.27279,3588.6,3588.5,40.8]
[1732858837654,5.9942,3588.6,3588.0,0.4344]
[1732858837858,1.02606253,3588.2,3588.0,0.4344]
[1732858838153,1.02606253,3588.2,3588.1,40.8]
[1732858838354,1.30468253,3588.2,3588.1,40.8]
[1732858838858,1.02606253,3588.2,3588.1,40.8]
[1732858839260,1.30468253,3588.2,3588.1,40.8]
[1732858840757,0.2786,3588.4,3588.1,40.8]
[1732858840959,0.2786,3588.4,3588.1,41.2293]
[1732858842464,0.27861,3588.3,3588.1,41.2293]
[1732858842663,0.27862,3588.2,3588.1,40.8]
[1732858843363,1.45156253,3588.5,3588.1,40.8]
[1732858843566,0.27861,3588.3,3588.1,40.8]
[1732858845761,0.27862,3588.2,3588.1,40.8]
[1732858846372,0.27861,3588.3,3588.1,40.8]
[1732858847070,1.45156253,3588.5,3588.1,40.8]
[1732858847271,0.27862,3588.2,3588.1,40.8]
[1732858848771,0.4255,3588.5,3588.1,40.8]
[1732858848966,0.27861,3588.3,3588.1,40.8]
[1732858849366,0.4255,3588.5,3588.1,40.8]
[1732858849671,0.27862,3588.2,3588.1,40.8]
[1732858857381,3.06582,3588.2,3588.1,40.8]
[1732858857678,3.47142,3588.2,3588.1,40.8]
[1732858858179,3.47142,3588.2,3587.8,0.4398]
[1732858858180,3.1928,3588.2,3587.8,0.4398]
[1732858858381,0.27864,3587.9,3587.8,0.4398]
[1732858858586,0.27863,3588.1,3587.8,0.71845]
[1732858858777,3.48642,3588.2,3587.9,41.50394]
[1732858858979,3.2078,3588.2,3587.9,41.50394]
[1732858859179,3.2078,3588.2,3588.0,0.27863]
[1732858859580,1.02606253,3588.3,3588.1,0.4236]
[1732858859784,0.27862,3588.2,3588.1,0.4236]
[1732858860277,1.30467253,3588.3,3588.1,0.4236]
[1732858860480,0.27861,3588.3,3588.1,0.4236]
[1732858861182,0.27862,3588.2,3588.1,0.4236]
[1732858862191,1.30468253,3588.2,3588.1,0.4236]
[1732858863284,3.81326253,3588.2,3587.9,40.8]
[1732858863484,0.27863,3588.0,3587.9,40.8]
[1732858867792,3.06583,3588.0,3587.9,40.8]
[1732858868088,2.7872,3588.0,3587.7,0.4437]
[1732858868283,1.30471253,3587.8,3587.7,0.4437]
[1732858870782,0.68854,3587.9,3587.7,0.4437]
[1732858871082,0.4099,3587.9,3587.7,0.4437]
[1732858871283,0.27864,3588.0,3587.7,0.4437]
[1732858871486,1.02606253,3588.1,3587.7,0.4437]
[1732858871685,0.27864,3587.9,3587.7,0.4437]
[1732858874195,0.27864,3587.9,3587.8,40.8]
[1732858874396,3.06584,3587.9,3587.8,40.8]
[1732858874994,0.27864,3587.9,3587.8,40.8]
[1732858879893,0.27864,3587.9,3587.7,0.4437]
[1732858879894,0.27865,3587.8,3587.7,0.4437]
[1732858880092,1.30471253,3587.8,3587.7,0.4437]
[1732858880296,1.30471253,3587.8,3587.7,41.2437]
[1732858883293,0.27865,3587.8,3587.7,41.2437]
[1732858883499,1.30471253,3587.8,3587.7,41.2437]
[1732858885294,1.02606253,3587.8,3587.7,41.2437]
[1732858886098,1.30471253,3587.8,3587.7,41.2437]
[1732858886504,0.27865,3587.8,3587.7,41.2437]
[1732858886999,1.30471253,3587.8,3587.7,41.2437]
[1732858887996,3.81326253,3587.8,3587.3,4.34537296]
[1732858888197,1.30474253,3587.4,3587.3,0.4435]
[1732858888596,1.30474253,3587.4,3587.3,45.58887296]
[1732858889806,1.30474253,3587.4,3587.3,4.78887296]
[1732858890605,1.30474253,3587.4,3587.3,0.4435]
[1732858894808,1.30474253,3587.4,3587.3,41.2435]
[1732858896011,1.02606253,3587.4,3587.3,41.2435]
[1732858896207,3.2078,3588.1,3587.3,45.58887296]
[1732858896412,0.27865,3587.8,3587.4,4.62404296]
[1732858896608,0.995,3587.9,3587.4,4.62404296]
[1732858896912,0.995,3587.9,3587.5,4.62404296]
[1732858896913,1.27364,3587.9,3587.5,4.62404296]
[1732858897115,1.27364,3587.9,3587.6,0.4285]
[1732858897316,1.27364,3587.9,3587.7,0.4377]
[1732858897718,1.27364,3587.9,3587.8,0.407]
[1732858898707,4.06084,3587.9,3587.8,0.407]
[1732858900219,1.27364,3587.9,3587.8,0.407]
[1732858903616,3.2078,3588.1,3587.8,0.407]
[1732858903920,0.27863,3588.0,3587.8,0.407]
[1732858905321,0.27864,3587.9,3587.8,4.75237296]
[1732858905517,0.27864,3587.9,3587.8,0.407]
[1732858909220,3.2078,3588.1,3587.8,0.407]
[1732858909420,1.30470253,3587.9,3587.8,0.407]
[1732858910912,0.27864,3587.9,3587.8,0.407]
[1732858911113,1.30470253,3587.9,3587.8,0.407]
[1732858911522,1.02606253,3587.9,3587.6,4.34537296]
[1732858911821,1.02606253,3587.9,3587.4,4.34537296]
[1732858911822,0.8765,3587.8,3587.4,4.34537296]
[1732858912124,0.27867,3587.5,3587.4,4.36359225]
[1732858913218,1.30473253,3587.5,3587.3,4.36359225]
[1732858913420,1.30473253,3587.5,3587.4,4.36359225]
[1732858915324,1.30473253,3587.5,3587.3,4.36359225]
[1732858917619,1.30473253,3587.5,3587.4,40.8]
[1732858918217,1.02606253,3587.5,3587.4,45.16359225]
[1732858918727,1.02606253,3587.5,3587.4,4.36359225]
[1732858919427,1.30473253,3587.5,3587.4,4.36359225]
[1732858920024,1.02606253,3587.5,3587.4,4.36359225]
[1732858920528,1.30473253,3587.5,3587.4,4.36359225]
[1732858922428,1.02606253,3587.5,3587.4,4.36359225]
[1732858922823,3.2078,3587.7,3587.4,6.17313813]
[1732858923024,3.2078,3587.7,3587.5,5.05387659]
[1732858923226,3.2078,3587.7,3587.5,4.77520659]
[1732858923432,3.2078,3587.7,3587.6,45.16640659]
[1732858924332,1.30470253,3587.9,3587.6,45.16640659]
[1732858924528,1.30470253,3587.9,3587.7,0.4462]
[1732858924827,3.2078,3588.1,3587.8,6.45056533]
[1732858924828,3.48643,3588.1,3587.8,6.45056533]
[1732858925029,0.27863,3588.0,3587.9,4.36518828]
[1732858925327,3.48643,3588.1,3587.9,4.36470586]
[1732858925631,3.48643,3588.1,3588.0,4.79120586]
[1732858926134,3.48643,3588.1,3588.0,0.4265]
[1732858927024,1.02606253,3588.2,3587.9,4.36470586]
[1732858927324,0.4086,3588.1,3587.9,4.36470586]
[1732858927524,1.30468253,3588.2,3587.9,4.36470586]
[1732858928126,1.30468253,3588.2,3588.0,4.36470586]
[1732858928332,1.30468253,3588.2,3587.9,4.36470586]
[1732858928535,1.30468253,3588.2,3588.0,4.36470586]
[1732858928828,1.30468253,3588.2,3587.9,4.36470586]
[1732858929132,0.27862,3588.1,3587.9,4.36470586]
[1732858929526,1.30468253,3588.2,3587.9,4.36470586]
[1732858930230,0.27863,3588.1,3587.9,4.36470586]
[1732858931328,1.30468253,3588.2,3587.9,4.36470586]
[1732858933830,1.30468253,3588.2,3587.7,5.51925586]
[1732858934031,1.02606253,3588.2,3587.7,5.24060586]
[1732858934337,1.02606253,3587.9,3587.7,5.24060586]
[1732858935926,1.02606253,3587.9,3587.7,5.51925586]
[1732858936833,1.02606253,3587.9,3587.8,0.27865]
[1732858937537,0.27862,3588.2,3587.8,4.64335586]
[1732858937538,1.30468253,3588.2,3587.8,4.64335586]
[1732858937934,1.02606253,3588.2,3587.8,4.64335586]
[1732858938135,0.27862,3588.1,3587.8,4.64335586]
[1732858939340,0.27862,3588.1,3587.8,4.64334586]
[1732858940034,1.30468253,3588.2,3587.9,0.27864]
[1732858940434,1.02606253,3588.2,3587.8,4.36470586]
[1732858940636,0.27863,3588.1,3587.8,4.64334586]
[1732858940842,0.27863,3588.0,3587.9,10.52990192]
[1732858941044,0.27863,3588.0,3587.9,4.36470586]
[1732858941240,0.27864,3587.9,3587.8,4.36470586]
[1732858941541,1.30470253,3587.9,3587.8,4.36470586]
[1732858942043,1.02606253,3587.9,3587.8,4.36470586]
[1732858945036,0.27865,3587.8,3587.7,0.8759]
[1732858945439,0.27865,3587.8,3587.7,41.6759]
[1732858946441,0.27865,3587.8,3587.7,0.8759]
[1732858948243,1.02606253,3587.9,3587.6,40.8]
[1732858948444,3.92696,3587.7,3587.6,40.8]
[1732858948747,0.27868,3587.4,3587.3,4.36470586]
[1732858948947,1.30474253,3587.4,3587.3,4.36470586]
[1732858949147,1.30474253,3587.4,3587.3,45.16470586]
[1732858949347,1.02606253,3587.4,3587.3,45.16470586]
[1732858949743,1.02606253,3587.4,3587.3,4.36470586]
[1732858950050,1.02606253,3587.4,3586.8,0.8325]
[1732858950051,0.27869,3587.3,3587.2,4.36470586]
[1732858950555,1.02606253,3587.4,3587.1,4.36470586]
[1732858950853,0.27869,3587.3,3587.1,4.36470586]
[1732858951447,1.02606253,3587.4,3587.1,4.36470586]
[1732858951642,1.30474253,3587.4,3587.1,4.36470586]
[1732858951952,1.02606253,3587.4,3587.2,4.36470586]
[1732858952253,1.02606253,3587.4,3587.3,0.4406]
[1732858952449,1.02606253,3587.4,3587.3,0.8795]
[1732858952645,1.02606253,3587.4,3587.3,1.3259]
[1732858952954,1.30474253,3587.4,3587.3,1.3259]
[1732858954658,1.30474253,3587.4,3587.3,42.1259]
[1732858955358,1.02606253,3587.4,3587.3,42.1259]
[1732858957354,1.02606253,3587.4,3587.3,42.40459]
[1732858957548,0.991,3587.6,3587.4,0.27868]
[1732858957751,1.30471253,3587.8,3587.4,4.64338586]
[1732858957949,0.27866,3587.7,3587.4,4.36470586]
[1732858958765,1.30472253,3587.7,3587.4,4.36470586]
[1732858958962,0.27867,3587.6,3587.4,4.36470586]
[1732858959660,1.30472253,3587.7,3587.4,4.36470586]
[1732858959856,1.02606253,3587.7,3587.4,4.36470586]
[1732858960062,1.02606253,3587.7,3587.5,4.64337586]
[1732858960361,1.02606253,3587.7,3587.6,4.64336586]
[1732858960560,2.01706253,3588.0,3587.7,0.27865]
[1732858960752,2.01706253,3588.0,3587.8,1.2494]
[1732858960954,1.02606253,3588.0,3587.8,1.2494]
[1732858961154,1.02606253,3588.0,3587.8,1.52804]
[1732858961761,1.02606253,3588.3,3587.8,5.60672925]
[1732858961956,0.21776653,3589.2,3588.2,3.48641]
[1732858961957,1.02606253,3588.6,3588.2,3.48641]
[1732858962159,0.27859,3588.5,3588.3,0.4208]
[1732858962362,0.27859,3588.5,3588.4,41.6886]
[1732858962556,1.02606253,3588.6,3588.4,41.6886]
[1732858962756,3.2078,3588.8,3588.5,0.27859]
[1732858962952,3.2078,3588.8,3588.5,4.63591925]
[1732858963356,3.2078,3588.8,3588.5,4.35732925]
[1732858963556,3.2078,3588.8,3588.6,0.27858]
[1732858963757,3.2078,3588.8,3588.7,0.27858]
[1732858963957,3.2078,3588.8,3588.7,4.63590925]
[1732858964763,1.30461253,3589.1,3588.8,0.27856]
[1732858964964,1.30461253,3589.1,3588.8,0.69936]
[1732858965161,0.27855,3589.0,3588.9,40.8]
[1732858965354,0.27859,3588.6,3588.5,0.427]
[1732858966165,0.72319,3588.6,3588.5,0.427]
[1732858966466,0.4446,3588.6,3588.2,3.2078]
[1732858966758,0.4446,3588.6,3588.1,0.427]
[1732858966759,1.02606253,3588.3,3588.1,0.427]
[1732858967762,1.02606253,3588.3,3588.1,0.70562]
[1732858967958,1.02606253,3588.3,3588.1,0.427]
[1732858968663,0.4446,3588.6,3588.1,0.427]
[1732858968664,1.47066253,3588.6,3588.1,0.427]
[1732858968859,0.27859,3588.5,3588.1,0.427]
[1732858969364,0.27861,3588.4,3588.1,0.427]
[1732858970462,1.47066253,3588.6,3588.1,0.427]
[1732858970664,1.74925253,3588.6,3588.2,3.48641]
[1732858970966,1.30465253,3588.6,3588.2,3.48641]
[1732858971165,0.27859,3588.6,3588.2,3.48641]
[1732858971469,0.27859,3588.6,3588.3,40.8]
[1732858971666,0.27859,3588.5,3588.4,0.4078]
[1732858971861,1.30465253,3588.6,3588.4,0.4078]
[1732858972463,1.02606253,3588.6,3588.4,0.4078]
[1732858972664,0.27859,3588.5,3588.4,0.4078]